[Event "VII GM Barcelona CC 2022"]
[Site "Barcelona"]
[Date "2022.05.13"]
[Round "7.5"]
[White "Roshka, Yevgeniy"]
[Black "Del Prado Rodriguez, Xulio"]
[Result "1-0"]
[ECO "C44"]
[WhiteElo "2468"]
[BlackElo "2326"]
[Annotator "TA"]
[PlyCount "53"]
[EventDate "2022.05.10"]
[EventType "tourn"]
[EventCountry "ESP"]
[SourceTitle "playchess.com"]
[Source "ChessBase"]
[SourceQuality "1"]
[TimeControl "5400+30"]

{[%evp 14,53,-8,-33,-28,-43,0,2,6,0,18,0,9,0,62,65,95,114,105,102,109,58,70,66,53,60,77,85,139,148,134,83,177,180,175,161,329,284,263,224,252,195]} 1. e4 {[%emt 0:02:41]} e5 {[%emt 0:00:46]} 2. Nf3 {[%emt 0:01:04]} Nc6 {[%emt 0:00:09]} 3. d3 {[%emt 0:03:02]} Nf6 {[%emt 0:02:26]} 4. Be2 {[%emt 0:01:05]} d5 {[%emt 0:01:34]} 5. Nbd2 {[%emt 0:00:03]} Bc5 {[%emt 0:01:56]} 6. O-O {[%emt 0:00:07]} O-O {[%emt 0:00:28]} 7. c3 {[%emt 0:00:03]} a5 {[%emt 0:06:49]} 8. b3 {[%emt 0:02:22]} Re8 {[%emt 0:20:57] 8...Re8 scores better than 8...Qe7. C44: Ponziani Opening and Scotch Gambit.} 9. Bb2 {[%emt 0:01:38]} Bf8 {[%emt 0:02:38]} 10. a3 {[%emt 0:01:00][%cal Ba2a3,Ba3a4,Ba4b5][%mdl 32] [#]} Rb8 $146 {[%emt 0:01:34] The position is equal.} ({Predecessor:} 10... Nh5 11. g3 Nf6 12. b4 Bg4 13. Qc2 Nb8 14. Rfe1 c6 15. Bf1 Nbd7 16. h3 Bh5 17. Nh4 Qc7 18. Nf5 Bg6 19. Nh4 Bh5 20. Nf5 Bg6 21. Nh4 {½-½ (21) Neuman,P (2457)-Biolek,R (2444) Olomouc 2017}) 11. Re1 {[%emt 0:01:38]} b5 {[%emt 0:05:01]} 12. Qc2 {[%emt 0:10:10]} dxe4 {[%emt 0:16:33]} 13. dxe4 {[%emt 0:00:44]} Qe7 {[%emt 0:00:24]} (13... Nh5 $11) 14. b4 $14 {[%emt 0:07:40]} h6 {[%emt 0:05:31]} 15. a4 {[%emt 0:10:39]} axb4 {[%emt 0:12:16]} 16. axb5 {[%emt 0:02:47]} bxc3 {[%emt 0:00:37]} 17. Qxc3 {[%emt 0:01:53]} (17. Bxc3 $16 Nd4 18. Nxd4 exd4 19. Bxd4) 17... Nd4 {[%emt 0:02:10]} 18. Nxd4 {[%emt 0:00:07]} exd4 {[%emt 0:00:05]} 19. Qxd4 {[%emt 0:00:18]} Rd8 {[%emt 0:01:10]} 20. Qc3 {[%emt 0:10:13] White is more active.} Nxe4 {[%emt 0:08:50]} (20... Qc5 $142) 21. Nxe4 $16 {[%emt 0:00:06]} Qxe4 {[%emt 0:00:05]} 22. Bc4 {[%emt 0:00:41]} ({Better is} 22. Qxc7 Be6 23. Qg3) 22... Qg6 {[%emt 0:01:45] [#]} (22... Qh4 $16) 23. Re3 $1 $18 {[%emt 0:00:44]} Bd6 {[%emt 0:03:13]} 24. Bd3 $36 {[%emt 0:01:26][%mdl 2048] Black is under strong pressure.} f5 $2 {[%emt 0:00:17]} (24... Qg5) 25. f4 {[%emt 0:00:29] Rg3 is the strong threat.} Bf8 {[%emt 0:02:57]} 26. Rg3 {[%emt 0:01:50]} ({Don't take} 26. Qxc7 $6 Qb6 27. Qxb6 Rxb6 $18) 26... Qb6+ {[%emt 0:00:17]} 27. Kh1 {[%emt 0:00:04] Weighted Error Value: White=0.08 (flawless) /Black=0.30} 1-0

[Event "VII GM Barcelona CC 2022"]
[Site "Barcelona"]
[Date "2022.05.14"]
[Round "8.1"]
[White "Pajeken, Jakob Leon"]
[Black "Del Prado Rodriguez, Xulio"]
[Result "1-0"]
[ECO "D26"]
[WhiteElo "2398"]
[BlackElo "2326"]
[Annotator "TA"]
[PlyCount "71"]
[EventDate "2022.05.10"]
[EventType "tourn"]
[EventCountry "ESP"]
[SourceTitle "playchess.com"]
[Source "ChessBase"]
[SourceQuality "1"]
[TimeControl "5400+30"]

{[%evp 12,71,16,14,11,15,16,8,22,0,29,-9,27,17,12,33,25,-124,-134,-112,-121,-103,0,0,12,0,0,-65,-76,-147,0,0,0,0,0,0,244,231,352,360,371,148,163,37,43,41,172,125,197,193,284,258,230,209,202,210,899,880,791,675,712,541]} 1. d4 {[%emt 0:00:03]} Nf6 {[%emt 0:00:12]} 2. Nf3 {[%emt 0:00:07]} e6 {[%emt 0:00:08]} 3. c4 {[%emt 0:01:29]} d5 {[%emt 0:00:56]} 4. Nc3 {[%emt 0:00:28]} a6 {[%emt 0:00:36]} 5. e3 {[%emt 0:00:06]} dxc4 {[%emt 0:01:35]} 6. a4 {[%emt 0:00:24]} c5 {[%emt 0:12:52]} 7. Bxc4 {[%emt 0:00:17]} cxd4 {[%emt 0:11:56] D26: Queen's Gambit Accepted: 4 e3 e6 5 Bxc5 c5 sidelines.} 8. exd4 {[%emt 0:05:14]} Bb4 {[%emt 0:00:12]} 9. O-O {[%emt 0:00:46]} O-O {[%emt 0:00:15] [#] The position is equal.} 10. Ne5 $146 {[%emt 0:02:24]} ({Predecessor:} 10. Bg5 Nbd7 11. Re1 Qa5 12. Qd3 Qf5 13. Qe2 b6 14. Bd3 Qg4 15. h3 Qh5 16. Qd2 {½-½ (31) Khenkin,I (2539)-Haring,F (2395) Ceske Budejovice 2021}) 10... Bd6 {[%emt 1:06:48]} 11. Qb3 {[%emt 0:16:41]} Nbd7 12. Nxd7 {[%emt 0:00:30]} Bxd7 {[%emt 0:00:00]} 13. Qxb7 {[%emt 0:00:30]} Rb8 {[%emt 0:00:00]} 14. Qxa6 {[%emt 0:07:17]} (14. Qf3 $1 $11 {was the only way to keep the balance.}) 14... Bc8 $1 $36 {[%emt 0:00:00][%mdl 2048] Black is on the roll.} 15. Qa7 {[%emt 0:00:57]} Rb7 {[%emt 0:00:00]} 16. Qa8 {[%emt 0:02:33] [#]} Qc7 {[%emt 0:00:00]} ({Better is} 16... Bxh2+ $1 $17 {[%mdl 512]} 17. Kxh2 Qc7+ 18. Kg1 Ng4) 17. Be2 $1 $11 {[%emt 0:00:25]} Bxh2+ {[%emt 0:00:00]} (17... Bd7 $5 18. Qa6 Bxh2+ 19. Kh1 Bd6 $11) 18. Kh1 {[%emt 0:00:05]} e5 {[%emt 0:00:00]} 19. d5 {[%emt 0:06:05]} (19. Nb5 $11 Qe7 20. b3 (20. Kxh2 Bg4 $11)) 19... e4 $1 $15 {[%emt 0:00:33]} 20. Ra3 {[%emt 0:22:46]} (20. d6 $142 Qxd6 21. Qa5 (21. g3 $2 Bxg3 22. fxg3 Qxg3 $19)) 20... Bd6 {[%emt 0:01:03]} (20... Be5 $1 $17 {White must now prevent ...Qe7.} 21. Kg1 Qe7) 21. Nb5 $11 {[%emt 0:01:09]} Rxb5 {[%emt 0:00:02]} 22. axb5 {[%emt 0:00:39]} Bg4 {[%emt 0:01:35]} 23. Bxg4 {[%emt 0:00:47][%cal Oa8c6]} Nxg4 $2 {[%emt 0:00:17]} (23... Qc4 $1 $11 {and Black is okay.} 24. Re1 Nxg4) 24. Qc6 $18 {[%emt 0:00:38]} Qb8 {[%emt 0:00:49]} (24... Qe7 $142 25. Rh3 Ne5) 25. Ra6 {[%emt 0:03:32] Hoping for Rb6.} Bf4 {[%emt 0:01:39] [#]} 26. d6 $2 {[%emt 0:00:39]} (26. Ra8 $3 $18 {[%mdl 512]} Qxa8 27. Bxf4) 26... Bxc1 $16 {[%emt 0:00:45] [#]} 27. Qxc1 {[%emt 0:05:27]} ({And not} 27. Rxc1 Qd8 28. Kg1 (28. g3 Qf6 $11) 28... Qh4 $11) (27. g3 $1 $18) 27... Qxb5 $14 {[%emt 0:00:02] ( -> ...Qh5+)} 28. Ra3 {[%emt 0:00:10] Threatens to win with Kg1.} e3 {[%emt 0:00:01]} (28... Qe5 $14 29. Rh3 Qxd6) 29. Rxe3 $18 {[%emt 0:00:19] Rh3 is the strong threat.} Nxe3 {[%emt 0:00:01]} (29... Qg5 $16 {was necessary.}) 30. fxe3 {[%emt 0:00:02][%mdl 4096] Endgame KQR-KQR} h6 {[%emt 0:00:45]} (30... g6 $142 31. Rd1 Rd8) 31. Rd1 {[%emt 0:00:24]} Rd8 {[%emt 0:00:51]} 32. d7 {[%emt 0:02:28]} Kf8 {[%emt 0:00:14]} 33. Qd2 {[%emt 0:00:46] Strongly threatening Qd6+.} Qc6 {[%emt 0:00:22]} (33... Qb6 34. Qc3 Qb5) 34. Qb4+ {[%emt 0:00:14] White is clearly winning.} Kg8 {[%emt 0:00:01]} 35. Qe7 {[%emt 0:00:10]} Qc7 {[%emt 0:00:24]} 36. Qe8+ {[%emt 0:00:40] Weighted Error Value: White=0.34/Black=0.43} 1-0

[Event "VII GM Barcelona CC 2022"]
[Site "Barcelona"]
[Date "2022.05.14"]
[Round "8.2"]
[White "Munoz, Miguel"]
[Black "Roshka, Yevgeniy"]
[Result "0-1"]
[WhiteElo "2421"]
[BlackElo "2468"]
[Annotator "TA"]
[PlyCount "11"]
[EventDate "2022.05.10"]
[EventType "tourn"]
[EventCountry "ESP"]
[SourceTitle "playchess.com"]
[Source "ChessBase"]
[SourceQuality "1"]
[TimeControl "5400+30"]

{[%evp 9,11,-32,0,-295]} 1. e4 {[%emt 0:14:35]} e6 {[%emt 0:01:10]} 2. d4 {[%emt 0:00:08]} d5 {[%emt 0:00:04]} 3. Nd2 {[%emt 0:00:09]} Nf6 {[%emt 0:01:02]} 4. Bd3 {[%emt 0:02:41]} c5 {[%emt 0:05:34]} 5. exd5 {[%emt 0:00:40]} exd5 {[%emt 0:11:09] [#]} 6. Nb3 $146 {[%emt 0:11:01][%mdl 8192] C05: French Tarrasch: 3...Nf6 4 e5 Nfd7, 5 f4 and 5 Bd3 sidelines.} (6. Qe2+ $11 Be7 7. dxc5) ({Predecessor:} 6. dxc5 Bxc5 7. Ngf3 O-O 8. O-O Nc6 9. Nb3 Bd6 10. Bg5 h6 11. Bh4 Bg4 12. h3 Bh5 13. c3 Ne5 14. Be2 Ng6 15. Bg3 Bxg3 16. fxg3 {1-0 (36) Mekhitarian,K (2562)-Weishaeutel,M (2371) Chess.com INT 2022}) 0-1

[Event "VII GM Barcelona CC 2022"]
[Site "Barcelona"]
[Date "2022.05.14"]
[Round "8.3"]
[White "Rodriguez Lopez, Rafael"]
[Black "Sosa, Tomas"]
[Result "0-1"]
[ECO "C60"]
[WhiteElo "2176"]
[BlackElo "2552"]
[Annotator "TA"]
[PlyCount "82"]
[EventDate "2022.05.10"]
[EventType "tourn"]
[EventCountry "ESP"]
[SourceTitle "playchess.com"]
[Source "ChessBase"]
[SourceQuality "1"]
[TimeControl "5400+30"]

{[%evp 14,82,21,18,14,12,26,19,17,27,14,20,27,22,14,16,34,0,0,0,0,-3,17,5,12,-34,-43,-57,-48,-135,-43,-63,-24,-125,-136,-158,-160,-183,-175,-162,-168,-158,-147,-153,-154,-226,-223,-229,-213,-293,-291,-287,-282,-332,-350,-304,-156,-155,-155,-310,-302,-323,-321,-618,-613,-624,-613,-605,-547,-527,-497]} 1. e4 {[%emt 0:00:03]} e5 {[%emt 1:31:00]} 2. Nf3 {[%emt 0:00:07]} Nc6 {[%emt 0:00:11]} 3. Bb5 {[%emt 0:00:04][%cal Bf1b5,Bb5a4,Ba4b3][%mdl 32]} a6 {[%emt 0:00:13]} 4. Ba4 {[%emt 0:00:04]} Nge7 {[%emt 0:00:32]} 5. O-O {[%emt 0:00:17]} g6 {[%emt 0:00:06]} 6. c3 {[%emt 0:00:04][%cal Bc2c3,Bc3d4,Bd4d5][%mdl 32]} Bg7 {[%emt 0:00:03]} 7. d4 {[%emt 0:00:08]} b5 {[%emt 0:00:07]} 8. Bb3 {[%emt 0:00:13]} exd4 {[%emt 0:00:07] C60: Ruy Lopez: Unusual Black 3rd moves and 3...g6.} 9. cxd4 {[%emt 0:00:04]} O-O {[%emt 0:00:18]} 10. d5 {[%emt 0:00:05]} Na5 {[%emt 0:00:04] The position is equal.} 11. Bd2 {[%emt 0:00:05]} Nxb3 {[%emt 0:00:10]} 12. Qxb3 {[%emt 0:00:06]} c5 {[%emt 0:00:12]} 13. Bc3 {[%emt 0:00:07]} d6 {[%emt 0:00:59]} 14. Bxg7 {[%emt 0:00:05]} Kxg7 {[%emt 0:00:05] [#]} 15. Nc3 $146 {[%emt 0:00:45]} ({Predecessor:} 15. Qc3+ Kg8 16. Qf6 Bg4 17. Nfd2 Nc8 18. Qf4 Bd7 19. Nc3 b4 20. Nd1 Bb5 21. Re1 {½-½ (55) Smeets,J (2620)-Efimenko,Z (2661) Germany 2013}) 15... Ng8 {[%emt 0:03:33]} 16. h3 {[%emt 0:05:01]} Nf6 {[%emt 0:00:29]} 17. Rfe1 {[%emt 0:04:39]} Bb7 {[%emt 0:00:44]} 18. Rad1 {[%emt 0:00:22]} Re8 {[%emt 0:00:19]} 19. e5 {[%emt 0:01:36]} (19. a3 $11 {deserves consideration.}) 19... dxe5 $15 {[%emt 0:00:36]} 20. Nxe5 {[%emt 0:00:48]} Qd6 $1 {[%emt 0:08:21]} ({Don't play} 20... c4 21. Qb4 $14) 21. f4 {[%emt 0:00:08]} (21. Nc4 $15 Qc7 22. Ne3) 21... c4 {[%emt 0:01:33]} ({Better is} 21... Rad8 $17 22. Qc2 Bxd5) 22. Qc2 $1 {[%emt 0:01:15]} Nxd5 {[%emt 0:13:06]} 23. Nxd5 {[%emt 0:11:39]} (23. Qf2 $1 $11) 23... Bxd5 $17 {[%emt 0:00:14]} 24. Qc3 {[%emt 0:00:07][%cal Od1d5] [#] Hoping for Rxd5!} f6 $36 {[%emt 0:05:25][%mdl 2048] Black is in control.} 25. Qd4 {[%emt 0:01:45]} Rad8 {[%emt 0:01:24]} ({Weaker is} 25... fxe5 26. fxe5 Qe6 27. Qxd5 Qxd5 28. Rxd5 $15) 26. Nf3 {[%emt 0:03:05] Rxe8 is the strong threat.} Rxe1+ {[%emt 1:03:02]} 27. Nxe1 {[%emt 0:00:05]} Qe7 {[%emt 0:05:54]} 28. Nc2 {[%emt 0:02:19]} Rd7 {[%emt 0:00:14]} 29. Qf2 {[%emt 0:01:31]} (29. Qe3 $17 {was necessary.} Kf7 30. Kf2) 29... Bf7 $19 {[%emt 0:01:24]} 30. Rxd7 {[%emt 0:02:17]} Qxd7 {[%emt 0:00:11][%mdl 4096] Endgame KQB-KQN} 31. a3 {[%emt 0:00:10]} Qd1+ {[%emt 0:00:51]} 32. Kh2 {[%emt 0:00:10]} Qc1 {[%emt 0:02:27]} 33. Nb4 {[%emt 0:02:37]} c3 {[%emt 0:01:26]} 34. bxc3 {[%emt 0:00:09]} Qxc3 {[%emt 0:01:09]} (34... Qxa3 $19 {aiming for ...a5.} 35. Qd4 a5) 35. Nxa6 {[%emt 0:00:59]} Qxa3 {[%emt 0:52:14]} 36. Nc5 {[%emt 0:00:10]} (36. Qb6 $17 {was forced.}) 36... Qc3 {[%emt 0:00:44]} 37. Ne4 {[%emt 0:00:20] [#]} Qd3 {[%emt 0:00:23]} 38. Qe1 {[%emt 1:06:01]} (38. Nc5 Qd6 39. Ne4) 38... Qd4 {[%emt 0:52:27] Black is clearly winning.} 39. Kg3 {[%emt 0:01:13]} b4 {[%emt 0:00:19][%cal Bb5b4,Bb4b3][%mdl 32]} 40. Nd2 {[%emt 0:00:33]} b3 {[%emt 0:00:43]} 41. Nf3 {[%emt 0:00:05]} Qb6 {[%emt 0:00:42] Weighted Error Value: White=0.33/Black=0.07 (flawless)} 0-1

[Event "VII GM Barcelona CC 2022"]
[Site "Barcelona"]
[Date "2022.05.14"]
[Round "8.4"]
[White "Gines Esteo, Pedro Antonio"]
[Black "Movsziszian, Karen"]
[Result "*"]
[ECO "C41"]
[WhiteElo "2434"]
[BlackElo "2467"]
[Annotator "TA"]
[PlyCount "40"]
[EventDate "2022.05.10"]
[EventType "tourn"]
[EventCountry "ESP"]
[SourceTitle "playchess.com"]
[Source "ChessBase"]
[SourceQuality "1"]
[TimeControl "5400+30"]

{[%evp 13,40,38,41,41,49,47,52,43,43,36,39,42,85,86,57,26,33,33,32,31,31,0,0,2,9,-9,-12,-14,-18]} 1. e4 {[%emt 1:31:00]} d6 {[%emt 1:31:00]} 2. d4 {[%emt 0:00:35]} Nf6 {[%emt 1:29:29]} 3. Nc3 {[%emt 0:00:09]} e5 {[%emt 0:00:05]} 4. Nf3 {[%emt 0:03:00]} Nbd7 {[%emt 0:00:19]} 5. Bc4 {[%emt 0:00:06]} Be7 {[%emt 0:00:05]} 6. O-O {[%emt 0:03:55]} c6 {[%emt 0:01:47]} 7. a4 {[%emt 0:01:17][%cal Ba2a4,Ba4a5,Ba5a6][%mdl 32]} h6 {[%emt 0:00:05] outshines the older 7...0-0.} 8. Re1 {[%emt 0:07:25] C41: Philidor Defence.} Qc7 {[%emt 0:00:03]} 9. a5 {[%emt 0:18:55]} Nf8 {[%emt 1:28:53]} 10. d5 {[%emt 0:10:07] White is slightly better.} Ng6 {[%emt 0:00:00]} 11. a6 {[%emt 0:03:29]} b5 {[%emt 0:00:00]} 12. Bb3 {[%emt 0:00:59]} O-O {[%emt 0:00:00] [#]} 13. dxc6 $1 {[%emt 0:03:11] White is more active.} Qxc6 {[%emt 0:00:00]} 14. Nd5 {[%emt 0:00:04]} Be6 {[%emt 0:02:30] [#]} 15. Nh4 $1 {[%emt 0:00:25] Strongly threatening Nxg6.} Bxd5 {[%emt 0:00:00]} 16. Nxg6 {[%emt 0:02:15]} fxg6 {[%emt 0:00:00] [#]} 17. exd5 $146 {[%emt 0:16:33]} (17. Bxd5+ Nxd5 18. Qxd5+ Qxd5 19. exd5 Rfc8 20. c3 Bg5 21. Bxg5 hxg5 22. Ra5 Rab8 23. Rc1) ({Predecessor:} 17. Bxd5+ Nxd5 18. Qxd5+ Qxd5 19. exd5 Rfc8 20. c3 Bg5 21. Bxg5 hxg5 22. Ra5 Rab8 23. Rc1 {1-0 (59) Perske,T (2450)-Olcum,A (2281) Karlsruhe 2019}) 17... Qd7 {[%emt 0:00:00] The position is equal.} 18. c3 {[%emt 0:00:06]} Bd8 {[%emt 0:00:00]} 19. h3 {[%emt 0:05:28]} Bb6 {[%emt 0:00:00]} 20. Be3 {[%emt 0:00:08]} Rab8 {[%emt 0:00:00] Weighted Error Value: White=0.07 (flawless) /Black=0.04 (flawless)} *

[Event "VII GM Barcelona CC 2022"]
[Site "Barcelona"]
[Date "2022.05.14"]
[Round "8.5"]
[White "Alvarez Albiol, Victor"]
[Black "Gonzalez Perez, Arian"]
[Result "1/2-1/2"]
[WhiteElo "2328"]
[BlackElo "2415"]
[Annotator "TA"]
[PlyCount "19"]
[EventDate "2022.05.10"]
[EventType "tourn"]
[EventCountry "ESP"]
[SourceTitle "playchess.com"]
[Source "ChessBase"]
[SourceQuality "1"]
[TimeControl "5400+30"]

{[%evp 9,19,0,40,24,20,19,28,13,18,16,26,27]} 1. e4 {[%emt 0:00:02]} c5 {[%emt 0:16:34]} 2. Nf3 {[%emt 0:00:08]} d6 {[%emt 0:00:25]} 3. Bb5+ {[%emt 0:00:06]} Bd7 {[%emt 0:00:19]} 4. c4 {[%emt 0:01:02]} Bxb5 {[%emt 0:01:41]} 5. cxb5 {[%emt 0:00:07]} e5 {[%emt 0:00:23]} 6. Nc3 {[%emt 0:00:23] B52: Sicilian: Moscow Variation with 3...Bd7.} Nf6 {[%emt 0:00:14]} 7. d3 {[%emt 0:00:31]} Be7 {[%emt 0:00:13]} 8. Bg5 {[%emt 0:00:57]} Nbd7 {[%emt 0:00:16]} 9. O-O {[%emt 0:00:59]} O-O {[%emt 0:00:23] [#]} 10. a4 $146 {[%emt 0:01:24] Not much happened in this game.  Weighted Error Value: White=0.08 (flawless) /Black=0.07 (flawless)} ({Predecessor:} 10. Bxf6 Nxf6 11. Qb3 a5 12. Nd2 Nh5 13. Nd5 Nf4 14. Nxf4 exf4 15. Qd5 Qd7 16. a4 {1-0 (45) Lenic,L (2639)-Luzar,E (2193) Slovenia 2015}) 1/2-1/2

[Event "VII GM Barcelona CC 2022"]
[Site "Barcelona"]
[Date "2022.05.14"]
[Round "9.2"]
[White "Movsziszian, Karen"]
[Black "Alvarez Albiol, Victor"]
[Result "1/2-1/2"]
[ECO "A07"]
[WhiteElo "2467"]
[BlackElo "2328"]
[Annotator "TA"]
[PlyCount "28"]
[EventDate "2022.05.10"]
[EventType "tourn"]
[EventCountry "ESP"]
[SourceTitle "playchess.com"]
[Source "ChessBase"]
[SourceQuality "1"]
[TimeControl "5400+30"]

{[%evp 16,28,-2,-5,8,8,8,4,7,10,12,10,1,0,8]} 1. g3 d5 2. Bg2 e5 3. d3 Nf6 4. Nf3 Nc6 5. O-O Be7 6. Bg5 O-O 7. Nc3 Be6 8. e4 dxe4 9. dxe4 {The position is equal.} Qxd1 {A07: Réti Opening: New York and Capablanca Systems.} 10. Rfxd1 Rfd8 {Prevents Nd5.} 11. Bxf6 Bxf6 12. Nd5 {[#]} Bxd5 $146 ({Predecessor:} 12... Rd7 13. Nxf6+ gxf6 14. Rxd7 Bxd7 15. Rd1 Rd8 16. Nh4 Be6 17. Rxd8+ Nxd8 18. a3 Nc6 {1-0 (39) Gufeld,E (2435)-Evans,L (2315) Los Angeles 1995}) 13. exd5 Nd4 14. Nxd4 exd4 {An uneventful encounter.  Weighted Error Value: White=0.00 (flawless) /Black=0.03 (flawless)} 1/2-1/2

[Event "VII GM Barcelona CC 2022"]
[Site "Barcelona"]
[Date "2022.05.14"]
[Round "9.3"]
[White "Sosa, Tomas"]
[Black "Gines Esteo, Pedro Antonio"]
[Result "0-1"]
[ECO "B11"]
[WhiteElo "2552"]
[BlackElo "2434"]
[Annotator "TA"]
[PlyCount "79"]
[EventDate "2022.05.10"]
[EventType "tourn"]
[EventCountry "ESP"]
[SourceTitle "playchess.com"]
[Source "ChessBase"]
[SourceQuality "1"]
[TimeControl "5400+30"]

{[%evp 10,79,23,10,33,-5,0,0,-4,-16,-16,-48,-55,-42,-15,-27,0,-7,0,-7,0,-75,-66,-90,-100,-105,-130,-112,-114,-113,-119,-116,0,-54,0,0,0,0,0,0,0,-79,-24,-63,-12,-111,-90,-97,-95,-110,-77,-93,-92,-306,-305,-294,-282,-346,-239,-213,-213,-6091,-5689,-29950,-12848,-7528,-6610,-6482,-6431,-6079,-5770,-29991]} 1. e4 {[%emt 0:02:36]} c6 {[%emt 0:00:06]} 2. Nc3 {[%emt 0:00:05]} d5 {[%emt 0:00:05]} 3. Nf3 {[%emt 0:00:04]} Bg4 {[%emt 0:05:15]} 4. h3 {[%emt 0:00:08]} Bxf3 {[%emt 0:00:03]} 5. Qxf3 {[%emt 0:00:07]} Nf6 {[%emt 0:00:03]} 6. Be2 {[%emt 0:00:28]} g6 {[%emt 0:03:32] B11: Caro-Kann: Two Knights Variation.} 7. e5 {[%emt 0:02:54]} Nfd7 {[%emt 0:00:17]} 8. d4 {[%emt 0:00:06]} e6 $1 {[%emt 0:00:40] [#] The position is equal.} 9. Be3 $146 {[%emt 0:01:15]} ({Predecessor:} 9. Qg3 Qb6 10. Qf4 Bg7 11. O-O O-O 12. Na4 Qc7 13. b3 b5 14. Nc3 b4 15. Na4 {½-½ (33) Kovanova,B (2363)-Filippova,D (2061) Satka 2018}) 9... c5 {[%emt 0:01:31]} 10. O-O-O {[%emt 0:08:02]} Nc6 {[%emt 0:07:14]} 11. dxc5 {[%emt 0:00:40]} Bg7 {[%emt 0:08:55]} 12. h4 {[%emt 0:07:54]} Ndxe5 {[%emt 0:18:01]} 13. Qg3 {[%emt 0:01:34]} Qa5 {[%emt 0:05:53]} 14. h5 {[%emt 0:08:01]} Nd7 {[%emt 0:06:42][%csl LRc3,LRc5] Pair of Knights!} 15. hxg6 {[%emt 0:13:31]} (15. Bd2 $1 $11) 15... hxg6 $17 {[%emt 0:00:32] [#] Threatens to win with ...Rxh1.} 16. Rxh8+ {[%emt 0:02:31]} Bxh8 {[%emt 0:00:01]} 17. Nb5 {[%emt 0:00:30]} Qxa2 {[%emt 0:40:10]} 18. Nc7+ {[%emt 0:21:21]} Kd8 {[%emt 0:00:00]} 19. Bg5+ {[%emt 0:00:46]} (19. Nxa8 $2 Qxb2+ 20. Kd2 Bc3+ 21. Kd3 Nb4#) 19... Kc8 {[%emt 0:00:00] Dancing on a razor blade.} 20. Nxa8 {[%emt 0:00:27][%csl Ga8][%cal Rg3c7]} Qxb2+ {[%emt 0:00:00]} (20... Bxb2+ $17 21. Kd2 Qa5+ 22. c3 Nxc5 23. Qc7+ (23. Ke1 Ne4 $17) 23... Qxc7 24. Nxc7 Kxc7) 21. Kd2 $15 {[%emt 0:00:07][%csl Ga8][%cal Rg3c7]} Qb4+ {[%emt 0:00:00]} (21... Be5 $15 22. Qb3 Qxb3 23. cxb3 Nxc5) 22. c3 $11 {[%emt 0:00:15][%csl Ga8][%cal Rg3c7]} Qb2+ {[%emt 0:00:00]} 23. Ke1 {[%emt 0:00:43][%csl Ga8][%cal Rg3c7]} Qxc3+ {[%emt 0:00:00]} 24. Qxc3 {[%emt 0:00:47]} Bxc3+ {[%emt 0:00:00]} 25. Kf1 {[%emt 0:00:06]} (25. Bd2 $1 $11 Be5 26. f4) 25... Kb8 {[%emt 0:00:00]} (25... Nxc5 $17 26. Bf4 Be5 27. Bxe5 Nxe5) 26. Rd3 {[%emt 0:00:13]} Bd4 {[%emt 0:00:00]} (26... Be5 $15) 27. Rh3 {[%emt 0:01:18]} Kxa8 $17 {[%emt 0:00:00]} 28. Rh7 {[%emt 0:01:56]} Nxc5 {[%emt 0:00:00]} 29. Rxf7 {[%emt 0:00:06]} a5 {[%emt 0:00:00]} 30. Bb5 {[%emt 0:00:52]} a4 {[%emt 0:00:00] ...a3 is the strong threat.} 31. Bxc6 $2 {[%emt 0:02:17] Now White is beyond hope.} ({Don't go for} 31. Rf4 $2 a3 32. Rf3 (32. Bxc6 $2 a2 $19) 32... Bb2 33. Rxa3+ Bxa3 $19) (31. Bc1 $17) 31... bxc6 {[%emt 0:00:00][%mdl 4096] Endgame KRB-KBN} 32. Be7 {[%emt 0:00:05]} Ne4 {[%emt 0:00:00]} ({Stronger than} 32... a3 33. Rf3 $11) 33. f3 {[%emt 0:00:42]} Nd2+ {[%emt 0:00:00]} 34. Ke2 {[%emt 0:00:09]} Nc4 {[%emt 0:00:00] Strongly threatening ...c5.} 35. Bf6 $2 {[%emt 0:04:37]} (35. f4) 35... Bxf6 $19 {[%emt 0:00:00]} 36. Rxf6 {[%emt 0:00:01]} a3 {[%emt 0:00:00]} 37. Rf8+ {[%emt 0:00:16] Black is clearly winning.} Kb7 {[%emt 0:00:00] ( -> ...a2)} 38. Rh8 {[%emt 0:00:07]} a2 {[%emt 0:00:00]} 39. Rh1 {[%emt 0:00:06] [#]} Na5 $1 {[%emt 0:00:00]} 40. Ke1 {[%emt 0:22:47] Weighted Error Value: White=0.69/Black=0.17 (very precise)} 0-1